bitfinex/quotes_BTCUSD_20250403
["timestamp","ask_amount","ask_price","bid_price","bid_amount"]
[1743663571493,0.0003368,83035.0,83034.0,0.3040673]
[1743663571696,0.0003368,83035.0,83034.0,0.3530673]
[1743663571919,0.0003368,83035.0,83034.0,0.1122023]
[1743663572321,0.0003368,83035.0,83034.0,0.3530673]
[1743663572604,0.0003368,83035.0,83034.0,0.1001593]
[1743663574242,0.0003368,83035.0,83034.0,0.3530673]
[1743663576171,0.00707778,83035.0,83034.0,0.3530673]
[1743663578720,0.0003368,83035.0,83034.0,0.3530673]
[1743663583069,0.0003368,83035.0,83034.0,0.8844219]
[1743663585221,8e-07,83035.0,83034.0,0.8844219]
[1743663590128,1e-06,83042.0,83041.0,0.0136009]
[1743663590328,1e-06,83042.0,83041.0,0.22666412]
[1743663592069,1e-06,83042.0,83041.0,0.2242565]
[1743663592468,1e-06,83042.0,83041.0,0.1075009]
[1743663592630,1e-06,83042.0,83041.0,0.10990852]
[1743663595289,1e-06,83042.0,83041.0,0.52450752]
[1743663595445,1e-06,83042.0,83041.0,0.5220999]
[1743663600563,1e-06,83042.0,83041.0,0.6388555]
[1743663601056,1e-06,83042.0,83041.0,0.5220999]
[1743663601602,1e-06,83042.0,83041.0,0.4625579]
[1743663601847,1e-06,83042.0,83041.0,0.4281999]
[1743663602214,1e-06,83042.0,83041.0,0.6690439]
[1743663603139,1e-06,83042.0,83041.0,0.4161579]
[1743663605017,0.139521,83042.0,83041.0,0.4281999]
[1743663605211,1e-06,83042.0,83041.0,0.4749999]
[1743663605740,1e-06,83042.0,83041.0,0.4281999]
[1743663606325,1e-06,83042.0,83041.0,0.4161579]
[1743663606909,1e-06,83042.0,83041.0,0.6570019]
[1743663607118,1e-06,83042.0,83041.0,0.7173439]
[1743663610240,1e-06,83042.0,83041.0,0.7671439]
[1743663610565,1e-06,83042.0,83041.0,0.8838995]
[1743663612664,1e-06,83042.0,83041.0,1.2288995]
[1743663612812,1e-06,83042.0,83041.0,1.2290679]
[1743663613593,1e-06,83042.0,83041.0,1.2540679]
[1743663613807,1e-06,83042.0,83041.0,1.26860875]
[1743663613952,2.1e-07,83048.0,83047.0,0.3547269]
[1743663614169,2.1e-07,83048.0,83047.0,0.8114825]
[1743663614754,2.1e-07,83048.0,83047.0,0.8064825]
[1743663618141,0.025,83064.0,83063.0,0.25282]
[1743663618142,0.02490001,83064.0,83063.0,0.25282]
[1743663618382,0.02490001,83064.0,83063.0,0.25295812]
[1743663618538,0.02490001,83064.0,83063.0,0.25451702]
[1743663618748,0.02490001,83064.0,83063.0,0.66911502]
[1743663621802,0.02490001,83064.0,83063.0,0.41629502]
[1743663622497,0.02490001,83064.0,83063.0,0.66911502]
[1743663623229,0.02490001,83064.0,83063.0,0.65707602]
[1743663623470,0.26567801,83064.0,83063.0,0.41629502]
[1743663624023,0.27771601,83064.0,83063.0,0.41629502]
[1743663624553,0.02490001,83064.0,83063.0,0.00169702]
[1743663624796,0.02523661,83064.0,83063.0,0.01373602]
[1743663624937,0.02523661,83064.0,83063.0,0.00169702]
[1743663625939,0.02523661,83064.0,83063.0,0.01373602]
[1743663626142,0.02523661,83064.0,83063.0,0.01614348]
[1743663626483,0.02523661,83064.0,83063.0,0.11024348]
[1743663627754,0.02523661,83064.0,83063.0,0.10783602]
[1743663627960,0.02523661,83064.0,83063.0,0.25451702]
[1743663629391,0.02523661,83064.0,83063.0,0.00169702]
[1743663629591,0.02523661,83064.0,83063.0,0.25451702]
[1743663629808,0.02523661,83064.0,83063.0,0.00169702]
[1743663629973,0.03727461,83064.0,83063.0,0.00169702]
[1743663632251,0.02523661,83064.0,83063.0,0.01373602]
[1743663634415,0.02523661,83064.0,83063.0,0.01614343]
[1743663634707,0.02523661,83064.0,83063.0,0.01373602]
[1743663636224,0.02523661,83064.0,83063.0,0.42833402]
[1743663636771,0.02523661,83064.0,83063.0,0.42850232]
[1743663639213,0.02523661,83064.0,83063.0,0.41646332]
[1743663639416,0.02523661,83064.0,83063.0,0.42850232]
[1743663640235,0.02523661,83064.0,83063.0,0.66928332]
[1743663642540,0.02523661,83064.0,83063.0,0.41646332]
[1743663642541,0.03727461,83064.0,83063.0,0.41646332]
[1743663642698,0.78300821,83064.0,83063.0,0.00030642]
[1743663642895,0.82028889,83064.0,83063.0,0.00030642]
[1743663644356,0.83482974,83064.0,83063.0,4.2e-07]
[1743663644765,0.95944889,83064.0,83063.0,4.2e-07]
[1743663646370,0.82028889,83064.0,83063.0,4.2e-07]
[1743663646572,0.95956889,83064.0,83063.0,4.2e-07]
[1743663647912,0.97410974,83064.0,83063.0,4.2e-07]
[1743663649814,1.09085375,83064.0,83063.0,4.2e-07]
[1743663650014,1.17410598,83064.0,83063.0,4.2e-07]
[1743663650535,1.13705375,83064.0,83063.0,4.2e-07]
[1743663650744,1.02030974,83064.0,83063.0,4.2e-07]
[1743663650963,1.02022974,83064.0,83063.0,4.2e-07]
[1743663651375,0.96840821,83064.0,83063.0,4.2e-07]
[1743663653374,0.92020821,83064.0,83063.0,4.2e-07]
[1743663653592,0.95741808,83064.0,83063.0,4.2e-07]
[1743663653954,0.95737808,83064.0,83063.0,4.2e-07]
[1743663655130,0.81821808,83064.0,83063.0,4.2e-07]
[1743663655321,0.95729808,83064.0,83063.0,4.2e-07]
[1743663656691,0.95717808,83064.0,83063.0,4.2e-07]
[1743663657896,2.04093808,83064.0,83063.0,4.2e-07]
[1743663658102,1.99473808,83064.0,83063.0,4.2e-07]
[1743663658473,1.99473808,83064.0,83063.0,0.00155932]
[1743663658474,1.95744821,83064.0,83063.0,0.00155932]
[1743663658702,1.81856821,83064.0,83063.0,0.00155932]
[1743663658907,1.24787661,83064.0,83063.0,0.00155932]
[1743663659109,1.10899661,83064.0,83063.0,0.25437932]
[1743663659310,1.10899661,83064.0,83063.0,0.04835932]
[1743663660000,1.10899661,83064.0,83063.0,0.06039832]
[1743663660500,0.02523661,83064.0,83063.0,0.06039832]
[1743663660701,0.02523661,83064.0,83063.0,0.47740389]
[1743663660906,0.02523661,83064.0,83063.0,0.52329632]
[1743663661470,0.02523661,83064.0,83063.0,0.64005192]
[1743663661855,0.02523661,83064.0,83063.0,0.52329632]
[1743663669622,0.02523661,83064.0,83063.0,0.64005192]
[1743663669834,0.012035,83087.0,83086.0,0.0015589]
[1743663670074,0.150555,83087.0,83086.0,0.0015589]
[1743663670322,0.13852,83087.0,83086.0,0.0015589]
[1743663670786,1.0838,83091.0,83090.0,0.0135939]
[1743663671000,0.0003372,83101.0,83098.0,0.0015589]
[1743663671174,0.154553,83099.0,83098.0,0.0015589]
[1743663671424,0.14252,83099.0,83098.0,0.0015589]
[1743663671634,0.14252,83099.0,83098.0,0.2422379]
[1743663671905,0.14252,83099.0,83098.0,0.0015589]
[1743663672107,0.14241983,83099.0,83098.0,0.24233206]
[1743663672340,0.14241983,83099.0,83098.0,0.25436506]
[1743663672489,0.14241983,83099.0,83098.0,0.00165306]
[1743663672692,0.00389983,83099.0,83098.0,0.00165306]
[1743663672890,0.00389983,83099.0,83098.0,0.01368606]
[1743663673090,0.00389983,83099.0,83098.0,0.00165306]
[1743663673295,0.01593283,83099.0,83098.0,0.00165306]
[1743663673927,0.50611666,83099.0,83098.0,9.416e-05]
[1743663674127,0.46906443,83099.0,83098.0,9.416e-05]
[1743663675068,0.46906443,83099.0,83098.0,0.00165306]
[1743663675271,0.41946443,83099.0,83098.0,0.00165306]
[1743663676742,0.37336443,83099.0,83098.0,0.00165306]
[1743663678675,0.25660883,83099.0,83098.0,0.00165306]
[1743663678834,0.39496883,83099.0,83098.0,0.00165306]
[1743663681048,0.39496883,83099.0,83098.0,9.416e-05]
[1743663681049,0.51172443,83099.0,83098.0,9.416e-05]
[1743663681309,0.64149666,83099.0,83098.0,9.416e-05]
[1743663681510,0.60444443,83099.0,83098.0,9.416e-05]
[1743663682675,0.55774443,83099.0,83098.0,9.416e-05]
[1743663683087,0.55079443,83099.0,83098.0,9.416e-05]
[1743663683481,0.55079443,83099.0,83098.0,0.00026246]
[1743663683691,0.58818326,83099.0,83098.0,0.00026246]
[1743663683896,0.99182411,83099.0,83098.0,0.00026246]
[1743663684340,1.10856812,83099.0,83098.0,4.6e-07]
[1743663684490,1.14570032,83099.0,83098.0,4.6e-07]
[1743663684691,1.03814547,83099.0,83098.0,4.6e-07]
[1743663686282,1.45274547,83099.0,83098.0,4.6e-07]
[1743663686556,1.47774547,83099.0,83098.0,4.6e-07]
[1743663687295,1.45274547,83099.0,83098.0,4.6e-07]
[1743663687506,1.56948948,83099.0,83098.0,4.6e-07]
[1743663688711,1.41569324,83099.0,83098.0,4.6e-07]
[1743663689394,1.27721324,83099.0,83098.0,4.6e-07]
[1743663689617,1.05212323,83099.0,83098.0,4.6e-07]
[1743663689827,0.54252323,83099.0,83098.0,4.6e-07]
[1743663690034,0.88252323,83099.0,83098.0,4.6e-07]
[1743663690238,0.50539103,83099.0,83098.0,4.6e-07]
[1743663690443,0.55713555,83099.0,83098.0,4.6e-07]
[1743663690651,0.89713555,83099.0,83098.0,4.6e-07]
[1743663691956,1.9660347,83099.0,83098.0,4.6e-07]
[1743663692152,1.6260347,83099.0,83098.0,4.6e-07]
[1743663692367,1.6260347,83099.0,83098.0,0.00155936]
[1743663692562,1.58883103,83099.0,83098.0,0.00155936]
[1743663693393,1.58879103,83099.0,83098.0,0.00155936]
[1743663694426,1.45019103,83099.0,83098.0,0.00155936]
[1743663694626,1.58871103,83099.0,83098.0,0.00155936]
[1743663696307,1.45019103,83099.0,83098.0,0.00155936]
[1743663696625,1.58859103,83099.0,83098.0,0.00155936]
[1743663700399,1.09275943,83099.0,83098.0,0.00155936]
[1743663700601,0.0003366,83099.0,83098.0,0.25427136]
[1743663700805,0.0003366,83099.0,83098.0,0.30217136]
[1743663701013,0.0003366,83099.0,83098.0,0.29013836]
[1743663701217,0.0003366,83099.0,83098.0,0.30217136]
[1743663701384,0.0003366,83099.0,83098.0,0.06149236]
[1743663701596,0.0003366,83099.0,83098.0,0.04945936]
[1743663701797,0.0003366,83099.0,83098.0,0.29013836]
[1743663702004,0.0003366,83099.0,83098.0,0.30217136]
[1743663707900,0.24065,83109.0,83102.0,0.252698]
[1743663708315,0.252685,83107.0,83100.0,0.252706]
[1743663708514,0.012032,83105.0,83098.0,0.30217136]
[1743663708732,0.252698,83103.0,83102.0,0.0015589]
[1743663709508,0.252709,83099.0,83098.0,0.00155936]
[1743663709715,0.390629,83099.0,83098.0,0.00155936]
[1743663709921,0.5073846,83099.0,83098.0,4.6e-07]
[1743663710284,0.86192545,83099.0,83098.0,4.6e-07]
[1743663711331,0.8473846,83099.0,83098.0,4.6e-07]
[1743663711776,0.8473846,83099.0,83098.0,0.00155936]
[1743663715863,0.489953,83099.0,83098.0,0.00155936]
[1743663716015,0.390629,83099.0,83098.0,0.00155936]
[1743663717632,0.149953,83099.0,83098.0,0.00155936]
[1743663717791,0.13792,83099.0,83098.0,0.00155936]
[1743663717988,0.149953,83099.0,83098.0,0.00155936]
[1743663718815,0.13792,83099.0,83098.0,0.00155936]
[1743663719896,0.012033,83100.0,83098.0,0.00155936]
[1743663720095,0.252709,83100.0,83098.0,0.00155936]
[1743663720296,0.252706,83101.0,83098.0,0.00155936]
[1743663720613,0.252706,83101.0,83100.0,0.0015589]
[1743663722059,0.592709,83099.0,83098.0,0.00155936]
[1743663722255,0.7094646,83099.0,83098.0,0.00155936]
[1743663723223,0.7094646,83099.0,83098.0,4.6e-07]
[1743663723461,0.7094646,83099.0,83098.0,0.00155936]
[1743663724281,0.7094646,83099.0,83098.0,4.6e-07]
[1743663724589,0.7094646,83099.0,83098.0,0.00155936]
[1743663725509,0.592709,83099.0,83098.0,0.00155936]
[1743663725714,0.730469,83099.0,83098.0,0.00155936]
[1743663729253,0.34,83099.0,83098.0,0.00155936]
[1743663729463,0.352032,83105.0,83103.0,0.0015589]
[1743663729637,0.730335,83104.0,83103.0,0.0015589]
[1743663730547,0.730255,83104.0,83103.0,0.0015589]
[1743663732258,0.13756,83104.0,83103.0,0.0015589]
[1743663732454,0.149593,83104.0,83103.0,0.0015589]
[1743663735474,0.13756,83104.0,83103.0,0.2542569]
[1743663735875,0.13756,83104.0,83103.0,0.0015589]
[1743663737420,0.390446,83107.0,83103.0,0.0015589]
[1743663738247,0.149792,83107.0,83103.0,0.0015589]
[1743663739646,0.0003366,83110.0,83103.0,0.0015589]
[1743663739831,0.0003366,83110.0,83109.0,0.0135909]
[1743663740035,0.0003366,83110.0,83109.0,0.06129713]
[1743663740458,0.0003366,83110.0,83109.0,0.0588909]
[1743663740833,0.0003366,83110.0,83109.0,0.06129707]
[1743663741035,0.0003366,83110.0,83109.0,0.52549507]
[1743663741254,0.0003366,83110.0,83109.0,0.5230889]
[1743663742265,0.0003366,83110.0,83109.0,0.52153]
[1743663742487,0.0003366,83110.0,83109.0,0.5230889]
[1743663747550,0.0003366,83110.0,83109.0,0.4614569]
[1743663747814,0.0003366,83110.0,83109.0,0.7141359]
[1743663748374,0.24459,83129.0,83127.0,0.0015589]
[1743663748582,0.489589,83128.0,83127.0,0.0015589]
[1743663748789,0.352029,83128.0,83127.0,0.0015589]
[1743663748990,0.489589,83128.0,83127.0,0.0015589]
[1743663749803,0.489589,83128.0,83127.0,0.00164757]
[1743663750177,0.47756,83128.0,83127.0,0.00164757]
[1743663750560,0.34,83128.0,83127.0,0.00164757]
[1743663750787,0.352029,83128.0,83127.0,0.00164757]
[1743663751283,0.004,83129.0,83128.0,0.0135879]
[1743663751508,0.004,83129.0,83128.0,0.01599349]
[1743663751901,0.00389986,83129.0,83128.0,0.01599349]
[1743663753111,0.00389986,83129.0,83128.0,0.06169349]
[1743663753951,0.00389986,83129.0,83128.0,0.47629149]
[1743663754147,0.00389986,83129.0,83128.0,0.4738859]
[1743663754366,0.00389986,83129.0,83128.0,0.6364415]
[1743663754951,0.00423646,83129.0,83128.0,0.6364415]
[1743663755123,0.00423646,83129.0,83128.0,0.6414415]
[1743663759396,4.6e-07,83129.0,83128.0,1.0064415]
[1743663759606,0.8978924,83160.0,83159.0,0.0015589]
[1743663759806,0.13748,83168.0,83162.0,0.2540769]
[1743663760056,0.0003368,83171.0,83162.0,0.2540769]
[1743663760211,0.13748,83170.0,83162.0,0.2540769]
[1743663760413,0.34,83169.0,83162.0,0.2540769]
[1743663760994,0.00079691,83163.0,83162.0,0.2540769]
[1743663762720,0.00079691,83163.0,83162.0,0.0015589]
[1743663762997,0.252518,83162.0,83161.0,0.0015589]
[1743663763581,0.00079691,83163.0,83162.0,0.0015589]
[1743663764029,0.01282091,83163.0,83162.0,0.0015589]
[1743663764608,0.24128791,83163.0,83162.0,0.0015589]
[1743663764821,0.25331191,83163.0,83162.0,0.0015589]
[1743663765856,0.252542,83154.0,83153.0,0.4161569]
[1743663766052,0.240511,83156.0,83153.0,0.4161569]
[1743663766303,0.252536,83156.0,83153.0,0.4161569]
[1743663766502,0.240517,83154.0,83153.0,0.4161569]
[1743663766709,0.252542,83154.0,83153.0,0.4161569]
[1743663767867,0.3692976,83154.0,83153.0,0.4161569]
[1743663771125,0.3692976,83154.0,83153.0,0.0015589]
[1743663771689,0.1167556,83154.0,83153.0,0.0015589]
[1743663771884,0.012025,83155.0,83154.0,0.0015589]
[1743663772523,0.012025,83155.0,83137.0,0.240564]
[1743663772729,0.252562,83148.0,83147.0,0.0015589]
[1743663775057,0.012026,83148.0,83147.0,0.0015589]
[1743663777231,0.592556,83150.0,83149.0,0.0015589]
[1743663777410,0.34,83150.0,83149.0,0.0015589]
[1743663778011,0.352026,83150.0,83149.0,0.0015589]
[1743663779433,0.34,83150.0,83149.0,0.0015589]
[1743663780234,0.352026,83150.0,83149.0,0.0015589]
[1743663780433,0.34,83150.0,83149.0,0.0015589]
[1743663781778,0.352026,83150.0,83149.0,0.0015589]
[1743663783021,0.352026,83150.0,83147.0,0.0001682]
[1743663783022,0.012026,83148.0,83147.0,0.0017271]
[1743663783223,0.1287816,83148.0,83147.0,0.0017271]
[1743663783341,0.012026,83148.0,83147.0,0.0017271]
[1743663785444,0.240532,83149.0,83148.0,0.0015589]
[1743663785801,0.252558,83149.0,83148.0,0.0015589]
[1743663786617,0.352026,83150.0,83149.0,0.0015589]
[1743663791373,0.489746,83150.0,83149.0,0.0015589]
[1743663791759,0.34,83150.0,83149.0,0.0017271]
[1743663791960,0.34,83150.0,83149.0,0.0137531]
[1743663792364,0.34,83150.0,83149.0,0.2542851]
[1743663792606,0.34,83150.0,83149.0,0.0017271]
[1743663794735,0.580529,83150.0,83149.0,0.0017271]
[1743663795007,0.592555,83150.0,83149.0,0.0017271]
[1743663797340,0.34,83150.0,83149.0,0.0017271]
[1743663797746,0.0003364,83159.0,83158.0,0.2540899]
[1743663800651,0.0003364,83159.0,83158.0,0.3034899]
[1743663800807,0.0003364,83159.0,83158.0,0.3501899]
[1743663803883,0.0003364,83159.0,83158.0,0.2540899]
[1743663805007,0.0003364,83159.0,83158.0,0.252531]
[1743663805239,0.2408394,83159.0,83158.0,0.0015589]
[1743663805713,0.0003364,83159.0,83158.0,0.0135839]
[1743663806570,0.0003364,83159.0,83158.0,0.0159887]
[1743663806916,0.0003364,83159.0,83158.0,0.0135839]
[1743663808539,0.2528654,83159.0,83153.0,0.049]
[1743663808757,0.252531,83158.0,83157.0,0.0015589]
[1743663809566,0.389971,83158.0,83157.0,0.0015589]
[1743663810015,0.8467266,83158.0,83157.0,0.0015589]
[1743663811752,0.8961266,83158.0,83157.0,0.0015589]
[1743663812496,0.8960866,83158.0,83157.0,0.0015589]
[1743663815668,0.252539,83155.0,83151.0,0.0015589]
[1743663815866,0.60708985,83152.0,83151.0,0.0015589]
[1743663816069,0.72384545,83152.0,83151.0,0.0015589]
[1743663818487,0.4567556,83152.0,83151.0,0.0015589]
[1743663818691,0.0003364,83159.0,83158.0,0.0015589]
[1743663818952,0.0003364,83159.0,83158.0,0.3030899]
[1743663823682,0.0003364,83159.0,83158.0,0.2910649]
[1743663824044,0.0003364,83159.0,83158.0,0.3030899]
[1743663826934,0.0003364,83159.0,83158.0,0.0015589]
[1743663827136,0.0003364,83159.0,83158.0,0.0135839]
[1743663827479,0.0003364,83159.0,83158.0,0.01598878]
[1743663827678,0.0003364,83159.0,83158.0,0.06298878]
[1743663828227,0.0003364,83159.0,83158.0,0.0605839]
[1743663829650,0.0003364,83159.0,83158.0,0.06298862]
[1743663831230,0.0003364,83159.0,83158.0,0.11068862]
[1743663832689,0.0003364,83159.0,83158.0,0.22744422]
[1743663833695,0.0003364,83159.0,83158.0,0.1082839]
[1743663835272,0.0003364,83159.0,83158.0,0.2420649]
[1743663835474,0.0003364,83159.0,83158.0,0.2540899]
[1743663836837,0.0003364,83159.0,83158.0,0.252531]
[1743663837038,0.0003364,83159.0,83158.0,0.2540899]
[1743663837234,0.0003364,83159.0,83158.0,0.252531]
[1743663837438,0.0003364,83159.0,83158.0,0.0015589]
[1743663838590,0.0003364,83159.0,83158.0,0.0135839]
[1743663838940,0.0003364,83159.0,83158.0,0.0159887]
[1743663839349,0.0003364,83159.0,83158.0,0.0135839]
[1743663839851,0.0003364,83159.0,83158.0,0.0017273]
[1743663840318,0.0003364,83159.0,83158.0,0.2422333]
[1743663841775,0.0003364,83159.0,83158.0,0.2542583]
[1743663842172,0.0003364,83159.0,83158.0,0.2422333]
[1743663842391,0.0003364,83159.0,83158.0,0.0017273]
[1743663842773,0.00079691,83163.0,83159.0,0.240503]
[1743663843378,0.01282091,83163.0,83162.0,0.0015589]
[1743663843583,0.12957651,83163.0,83162.0,0.0015589]
[1743663843995,0.3283064,83159.0,83158.0,0.0017273]
[1743663844190,0.3283064,83159.0,83158.0,0.2422333]
[1743663844512,0.3283064,83159.0,83158.0,0.2542583]
[1743663845027,0.00079691,83163.0,83162.0,0.2540769]
[1743663846533,0.00079691,83163.0,83162.0,0.2996769]
[1743663847328,0.00079691,83163.0,83162.0,0.7142769]
[1743663850047,0.00079691,83163.0,83162.0,0.8310325]
[1743663850401,0.00079691,83163.0,83162.0,0.8765325]
[1743663852161,0.00079691,83163.0,83162.0,0.8815325]
[1743663852729,9.1e-07,83163.0,83162.0,0.8815325]
[1743663853885,9.1e-07,83163.0,83162.0,0.9015325]
[1743663854091,9.1e-07,83163.0,83162.0,0.9065325]
[1743663857945,0.0003368,83171.0,83170.0,0.3524529]
[1743663858146,0.0003368,83171.0,83170.0,0.6063685]
[1743663858485,8e-07,83171.0,83170.0,0.4692085]
[1743663858847,8e-07,83171.0,83170.0,1.38596759]
[1743663859468,8e-07,83185.0,83184.0,0.0135799]
[1743663859661,0.0003366,83194.0,83184.0,0.0135799]
[1743663859662,4e-07,83194.0,83193.0,0.2539829]
[1743663859859,4e-07,83194.0,83193.0,0.83133759]
[1743663860577,4e-07,83194.0,83193.0,0.84015992]
[1743663860792,4e-07,83194.0,83193.0,0.84515992]
[1743663860959,4e-07,83194.0,83193.0,0.84524859]
[1743663861368,4e-07,83194.0,83193.0,0.89054859]
[1743663862844,4e-07,83194.0,83193.0,1.27008944]
[1743663863215,0.004,83219.0,83211.0,0.2539279]
[1743663863419,0.004,83219.0,83211.0,0.83168219]
[1743663866422,0.004,83219.0,83211.0,0.87778219]
[1743663868111,2e-07,83219.0,83215.0,0.012017]
[1743663868315,2e-07,83219.0,83218.0,0.012016]
[1743663868594,2e-07,83219.0,83218.0,0.37306536]
[1743663868748,2e-07,83219.0,83218.0,0.3706625]
[1743663868912,2e-07,83219.0,83218.0,0.4165625]
[1743663869116,2e-07,83219.0,83218.0,0.83616119]
[1743663869316,4e-07,83239.0,83238.0,0.0135719]
[1743663869614,4e-07,83239.0,83238.0,0.43057288]
[1743663869817,4e-07,83239.0,83238.0,0.42817059]
[1743663870059,4e-07,83239.0,83238.0,0.42661169]
[1743663870260,4e-07,83239.0,83238.0,0.42817059]
[1743663875218,4e-07,83239.0,83238.0,0.54492619]
[1743663877018,4e-07,83239.0,83238.0,0.42817059]
[1743663884166,0.580219,83258.0,83251.0,0.252246]
[1743663884365,0.34,83256.0,83255.0,0.0015589]
[1743663884587,0.4567556,83256.0,83255.0,0.0015589]
[1743663884806,0.7089886,83256.0,83255.0,0.0015589]
[1743663885011,0.7089886,83256.0,83244.0,0.0015589]
[1743663885012,0.252268,83245.0,83244.0,0.0015589]
[1743663886587,0.012012,83248.0,83244.0,0.0015589]
[1743663887001,0.0001682,83245.0,83244.0,0.0015589]
[1743663889521,0.25542955,83245.0,83244.0,0.0015589]
[1743663889718,0.2524342,83245.0,83244.0,0.0015589]
[1743663889919,0.7091898,83245.0,83244.0,0.0015589]
[1743663890124,0.7550898,83245.0,83244.0,0.0015589]
[1743663890962,0.7550898,83245.0,83238.0,0.41493509]
[1743663890963,0.352013,83242.0,83238.0,0.0003364]
[1743663891164,0.60682485,83239.0,83238.0,0.0003364]
[1743663891504,0.72358045,83239.0,83238.0,0.0003364]
[1743663892983,0.73480124,83239.0,83238.0,0.0003364]
[1743663893259,0.72026039,83239.0,83238.0,0.0003364]
[1743663893681,0.60350479,83239.0,83238.0,0.0018953]
[1743663894045,0.74034479,83239.0,83238.0,0.0018953]
[1743663894247,0.60350479,83239.0,83238.0,0.0018953]
[1743663894499,0.8458796,83239.0,83238.0,0.0018953]
[1743663894647,0.88324959,83239.0,83238.0,0.0018953]
[1743663894850,0.90569046,83239.0,83238.0,0.0018953]
[1743663895051,0.86832047,83239.0,83238.0,0.0018953]
[1743663895338,0.90570054,83239.0,83238.0,0.0018953]
[1743663895750,0.88325967,83239.0,83238.0,0.0018953]
[1743663897295,0.89447923,83239.0,83238.0,0.0018953]
[1743663898329,0.87852871,83239.0,83238.0,0.0018953]
[1743663898524,0.86730915,83239.0,83238.0,0.0018953]
[1743663899928,0.88185,83239.0,83238.0,0.0003364]
[1743663900146,0.97445,83239.0,83238.0,0.0003364]
[1743663902084,0.97445,83239.0,83238.0,4e-07]
[1743663902085,3.431188,83239.0,83238.0,4e-07]
[1743663902283,0.012017,83209.0,83208.0,0.0015589]
[1743663902494,0.252378,83209.0,83208.0,0.0015589]
[1743663903416,0.252378,83209.0,83198.0,0.10753356]
[1743663903417,0.252399,83202.0,83201.0,0.0015589]
[1743663903619,0.3691546,83202.0,83201.0,0.0015589]
[1743663904023,0.592406,83199.0,83198.0,0.10909246]
[1743663904812,0.592406,83199.0,83198.0,0.00164757]
[1743663905622,0.012017,83214.0,83211.0,0.0015589]
[1743663905826,0.592361,83214.0,83213.0,0.0015589]
[1743663906173,0.592361,83214.0,83198.0,8.867e-05]
[1743663906174,0.592375,83209.0,83208.0,0.0015589]
[1743663906741,0.252406,83199.0,83198.0,0.00164757]
[1743663906929,0.5062416,83199.0,83198.0,8.867e-05]
[1743663907130,0.52078245,83199.0,83198.0,8.867e-05]
[1743663908138,0.86078245,83199.0,83198.0,8.867e-05]
[1743663909308,0.88312923,83199.0,83198.0,8.867e-05]
[1743663909889,0.92752923,83199.0,83198.0,6.7e-07]
[1743663910499,0.592427,83192.0,83191.0,6.7e-07]
[1743663910710,0.72372345,83192.0,83191.0,4.674e-05]
[1743663910911,0.72372345,83192.0,83191.0,7.4e-07]
[1743663911625,0.76812345,83192.0,83191.0,7.4e-07]
[1743663912151,0.80280077,83192.0,83191.0,7.4e-07]
[1743663912593,1.33414478,83192.0,83191.0,7.4e-07]
[1743663912768,1.38274478,83192.0,83191.0,7.4e-07]
[1743663915992,1.26600077,83192.0,83191.0,7.4e-07]
[1743663916212,1.3093426,83192.0,83191.0,7.4e-07]
[1743663916512,0.3691826,83192.0,83191.0,0.00155964]
[1743663916715,0.7091826,83192.0,83191.0,0.00155964]
[1743663916910,0.3691826,83192.0,83191.0,0.00155964]
[1743663917126,0.592427,83192.0,83191.0,0.00155964]
[1743663917623,0.7091826,83192.0,83191.0,7.4e-07]
[1743663917834,0.72372345,83192.0,83191.0,7.4e-07]
[1743663919041,0.7091826,83192.0,83191.0,0.00155964]
[1743663924134,0.7091826,83192.0,83191.0,0.00189624]
[1743663924336,0.7093509,83192.0,83191.0,0.00189624]
[1743663925154,0.7293553,83192.0,83191.0,0.00189624]
[1743663925725,0.5925953,83192.0,83191.0,0.00189624]
[1743663925930,0.2405753,83192.0,83191.0,0.04819624]
[1743663926093,0.0001683,83192.0,83191.0,0.04819624]
[1743663926815,0.0121883,83192.0,83191.0,0.04819624]
[1743663928668,0.0121883,83192.0,83191.0,0.00189624]
[1743663929015,0.01518365,83192.0,83191.0,0.00033734]
[1743663929235,0.47193925,83192.0,83191.0,0.00033734]
[1743663929441,0.13129645,83192.0,83191.0,0.00033734]
[1743663929641,0.1463118,83192.0,83191.0,0.00033734]
[1743663929884,0.16502403,83192.0,83191.0,0.00033734]
[1743663930396,0.16202868,83192.0,83191.0,0.00033734]
[1743663931302,0.1845129,83192.0,83191.0,0.00033734]
[1743663932488,0.18750825,83192.0,83191.0,0.00033734]
[1743663933106,1.26954825,83192.0,83191.0,0.00033734]
[1743663933303,1.30123022,83192.0,83191.0,3.4e-07]
[1743663933522,1.64123022,83192.0,83191.0,3.4e-07]
[1743663934136,1.67849429,83192.0,83191.0,3.4e-07]
[1743663935818,1.64381697,83192.0,83191.0,3.4e-07]
[1743663936667,1.64398527,83192.0,83191.0,3.4e-07]
[1743663939496,1.62944442,83192.0,83191.0,3.4e-07]
[1743663939696,1.76664442,83192.0,83191.0,3.4e-07]
[1743663940100,1.76664442,83192.0,83191.0,0.00155924]
[1743663941242,1.28944442,83192.0,83191.0,0.00155924]
[1743663941404,1.28944442,83192.0,83191.0,0.04755924]
[1743663941405,1.15397659,83192.0,83191.0,0.04755924]
[1743663941771,1.11671252,83192.0,83191.0,0.04755924]
[1743663942817,1.10469252,83192.0,83191.0,0.04755924]
[1743663943469,1.11671252,83192.0,83191.0,0.04755924]
[1743663944666,1.15408379,83192.0,83191.0,0.04755924]
[1743663945269,1.11671252,83192.0,83191.0,0.04755924]
[1743663946120,1.10469252,83192.0,83191.0,0.05957924]
[1743663946341,1.10469252,83192.0,83191.0,0.29998924]
[1743663946581,1.10469252,83192.0,83191.0,0.10687924]
[1743663946777,0.02265252,83192.0,83191.0,0.10687924]
[1743663946961,0.02265252,83192.0,83191.0,0.09485924]
[1743663947508,0.0001683,83192.0,83191.0,0.10928311]
[1743663947916,0.0001683,83192.0,83191.0,0.22603871]
[1743663948260,1.334366,83213.0,83212.0,0.0485589]
[1743663948679,1.35677636,83213.0,83212.0,0.0485589]
[1743663949821,1.10441036,83213.0,83212.0,0.3009249]
[1743663950267,0.02241036,83213.0,83212.0,0.3009249]
[1743663950619,0.252345,83220.0,83212.0,0.0605759]
[1743663950823,0.012016,83218.0,83212.0,0.0605759]
[1743663951140,0.003997,83217.0,83213.0,0.252364]
[1743663951319,0.01864559,83219.0,83218.0,0.0015589]
[1743663951518,0.34,83225.0,83221.0,0.012016]
[1743663951740,0.34,83225.0,83220.0,0.0481]
[1743663952362,0.25233,83224.0,83223.0,0.0015589]
[1743663952659,0.27097029,83224.0,83223.0,0.0015589]
[1743663954739,0.27496296,83224.0,83223.0,0.0015589]
[1743663956242,0.27496296,83224.0,83220.0,0.0481]
[1743663956243,0.252339,83221.0,83220.0,0.0496589]
[1743663956446,0.252339,83221.0,83220.0,0.0015589]
[1743663956602,0.25633456,83221.0,83220.0,0.0015589]
[1743663958137,0.37309016,83221.0,83220.0,0.0015589]
[1743663959219,0.252348,83218.0,83215.0,0.0015589]
[1743663959423,0.252364,83213.0,83212.0,0.41615759]
[1743663959743,0.2563798,83213.0,83212.0,0.41615759]